[Event "Late-Titled-Tuesday-Blitz-April-02-2024"]
[Site "Chess.com"]
[Date "2024.04.02"]
[Round "2"]
[White "Nick12772"]
[Black "SmirnovTimofey2000"]
[Result "1-0"]
[WhiteElo "2414"]
[BlackElo "1942"]
[TimeControl "180+1"]
[EndTime "14:17:30 PDT"]
[Termination "Nick12772 won on time"]

1. Nf3 {[%clk 0:03:00.9]} 1... d5 {[%clk 0:02:57.7]} 2. g3 {[%clk 0:03:01.4]}
2... Bf5 {[%clk 0:02:57.3]} 3. Bg2 {[%clk 0:03:01.9]} 3... e6 {[%clk 0:02:57.7]}
4. O-O {[%clk 0:03:02.6]} 4... Nf6 {[%clk 0:02:58.1]} 5. d4 {[%clk 0:03:03]}
5... Be7 {[%clk 0:02:58.4]} 6. c4 {[%clk 0:03:03.1]} 6... c6 {[%clk 0:02:58.1]}
7. b3 {[%clk 0:03:01.8]} 7... O-O {[%clk 0:02:57.2]} 8. Nc3 {[%clk 0:03:01.8]}
8... h6 {[%clk 0:02:57.2]} 9. Bb2 {[%clk 0:03:02.3]} 9... Ne4 {[%clk 0:02:56.3]}
10. Nxe4 {[%clk 0:03:02.3]} 10... Bxe4 {[%clk 0:02:57.2]} 11. Qd2 {[%clk
0:02:54.6]} 11... Nd7 {[%clk 0:02:57]} 12. Rac1 {[%clk 0:02:51.4]} 12... Nf6
{[%clk 0:02:55.7]} 13. a3 {[%clk 0:02:51.3]} 13... a5 {[%clk 0:02:55.4]} 14.
Rfd1 {[%clk 0:02:48]} 14... Rc8 {[%clk 0:02:52.9]} 15. c5 {[%clk 0:02:44.4]}
15... Nd7 {[%clk 0:02:27.8]} 16. Bc3 {[%clk 0:02:41.1]} 16... Bg5 {[%clk
0:02:05.3]} 17. Nxg5 {[%clk 0:02:37.5]} 17... Bxg2 {[%clk 0:02:04.8]} 18. Kxg2
{[%clk 0:02:22.9]} 18... hxg5 {[%clk 0:01:49.1]} 19. Bxa5 {[%clk 0:02:22.8]}
19... Qe7 {[%clk 0:01:42.5]} 20. Bc3 {[%clk 0:02:19.6]} 20... e5 {[%clk
0:01:37.1]} 21. dxe5 {[%clk 0:02:15.4]} 21... Nxe5 {[%clk 0:01:38]} 22. Qd4
{[%clk 0:02:02.9]} 22... f6 {[%clk 0:01:34.8]} 23. Re1 {[%clk 0:01:58.7]} 23...
Nd7 {[%clk 0:01:22.8]} 24. b4 {[%clk 0:01:54.3]} 24... Rfe8 {[%clk 0:01:20.2]}
25. e3 {[%clk 0:01:45.5]} 25... Ne5 {[%clk 0:01:17.9]} 26. e4 {[%clk 0:01:37.8]}
26... Rcd8 {[%clk 0:01:03.4]} 27. exd5 {[%clk 0:01:22.6]} 27... Rxd5 {[%clk
0:01:02.5]} 28. Qe3 {[%clk 0:01:23.3]} 28... Qd7 {[%clk 0:00:31.5]} 29. Bxe5
{[%clk 0:01:20.8]} 29... Rexe5 {[%clk 0:00:27.1]} 30. Qb3 {[%clk 0:01:16.9]}
30... Kh8 {[%clk 0:00:19]} 31. Rxe5 {[%clk 0:01:13.8]} 31... Rxe5 {[%clk
0:00:18.1]} 32. Rd1 {[%clk 0:01:12.4]} 32... Qe7 {[%clk 0:00:13.2]} 33. Qf3
{[%clk 0:01:09.1]} 33... Re1 {[%clk 0:00:08.5]} 34. Qh5+ {[%clk 0:01:04.7]}
34... Kg8 {[%clk 0:00:08.3]} 35. Qg4 {[%clk 0:00:55.9]} 35... Rxd1 {[%clk
0:00:07]} 36. Qxd1 {[%clk 0:00:56.8]} 36... Qe4+ {[%clk 0:00:07.2]} 37. Qf3
{[%clk 0:00:52.3]} 37... Qe1 {[%clk 0:00:04.6]} 38. Qb3+ {[%clk 0:00:51.4]}
38... Kh8 {[%clk 0:00:03.6]} 39. Qd3 {[%clk 0:00:43.5]} 39... Qe7 {[%clk
0:00:03.2]} 40. h3 {[%clk 0:00:38.6]} 40... Kg8 {[%clk 0:00:02.7]} 41. Kh2
{[%clk 0:00:36.7]} 41... Kh8 {[%clk 0:00:02.7]} 42. a4 {[%clk 0:00:32.8]} 42...
Qe1 {[%clk 0:00:01.9]} 43. Qd4 {[%clk 0:00:30.4]} 43... Qe7 {[%clk 0:00:01.2]}
44. b5 {[%clk 0:00:29.1]} 44... cxb5 {[%clk 0:00:01.1]} 45. axb5 {[%clk
0:00:30]} 45... Qc7 {[%clk 0:00:01.2]} 46. Qe3 {[%clk 0:00:25.5]} 46... Qc8
{[%clk 0:00:01.3]} 47. Qc3 {[%clk 0:00:18.1]} 47... Qc7 {[%clk 0:00:01.6]} 48.
c6 {[%clk 0:00:17.7]} 48... bxc6 {[%clk 0:00:01.7]} 49. Qxc6 {[%clk 0:00:17.9]}
1-0

[Event "Late-Titled-Tuesday-Blitz-April-02-2024"]
[Site "Chess.com"]
[Date "2024.04.02"]
[Round "2"]
[White "Lady_Nika"]
[Black "javierfreilemartin"]
[Result "1-0"]
[WhiteElo "2547"]
[BlackElo "2300"]
[TimeControl "180+1"]
[EndTime "14:17:34 PDT"]
[Termination "Lady_Nika won on time"]

1. c4 {[%clk 0:03:00.9]} 1... Nf6 {[%clk 0:02:56.6]} 2. Nc3 {[%clk 0:03:01.1]}
2... g6 {[%clk 0:02:56.7]} 3. d4 {[%clk 0:03:01.1]} 3... Bg7 {[%clk 0:02:56.6]}
4. e4 {[%clk 0:03:01.5]} 4... d6 {[%clk 0:02:56.7]} 5. f3 {[%clk 0:03:01.8]}
5... O-O {[%clk 0:02:52.3]} 6. Be3 {[%clk 0:03:02]} 6... c6 {[%clk 0:02:52.8]}
7. Qd2 {[%clk 0:03:02.2]} 7... a6 {[%clk 0:02:53.2]} 8. Bd3 {[%clk 0:03:02.4]}
8... Re8 {[%clk 0:02:52.8]} 9. Nge2 {[%clk 0:03:02.5]} 9... b5 {[%clk
0:02:52.9]} 10. O-O {[%clk 0:03:02]} 10... bxc4 {[%clk 0:02:51.9]} 11. Bxc4
{[%clk 0:03:02.1]} 11... a5 {[%clk 0:02:51.3]} 12. e5 {[%clk 0:02:55.2]} 12...
Nfd7 {[%clk 0:02:50]} 13. e6 {[%clk 0:02:53.7]} 13... fxe6 {[%clk 0:02:47.6]}
14. Bxe6+ {[%clk 0:02:53.6]} 14... Kh8 {[%clk 0:02:48.3]} 15. d5 {[%clk
0:02:44.6]} 15... Nf8 {[%clk 0:02:46.4]} 16. Bf7 {[%clk 0:02:43.1]} 16... cxd5
{[%clk 0:02:36.2]} 17. Bxe8 {[%clk 0:02:43]} 17... Qxe8 {[%clk 0:02:36]} 18.
Qxd5 {[%clk 0:02:43]} 18... Ra6 {[%clk 0:02:24.6]} 19. Rad1 {[%clk 0:02:35.7]}
19... Be6 {[%clk 0:02:20.6]} 20. Qb5 {[%clk 0:02:30.3]} 20... Bd7 {[%clk
0:02:16]} 21. Qg5 {[%clk 0:02:26]} 21... Ne6 {[%clk 0:02:14.6]} 22. Qg3 {[%clk
0:02:20.4]} 22... a4 {[%clk 0:02:13.2]} 23. Nd5 {[%clk 0:02:14.7]} 23... Nc6
{[%clk 0:02:09.6]} 24. Nef4 {[%clk 0:02:12.3]} 24... Nxf4 {[%clk 0:02:05.3]} 25.
Bxf4 {[%clk 0:02:12.2]} 25... Bxb2 {[%clk 0:02:04.2]} 26. Nc7 {[%clk 0:02:10.3]}
26... Qc8 {[%clk 0:02:01.7]} 27. Nxa6 {[%clk 0:02:10.2]} 27... Qxa6 {[%clk
0:02:02.6]} 28. Bg5 {[%clk 0:02:04.3]} 28... Be5 {[%clk 0:01:58.6]} 29. f4
{[%clk 0:02:04]} 29... Bg7 {[%clk 0:01:54.6]} 30. Qh4 {[%clk 0:02:02.2]} 30...
Bf5 {[%clk 0:01:52.8]} 31. Bxe7 {[%clk 0:01:59.6]} 31... Qa7+ {[%clk 0:01:52.7]}
32. Kh1 {[%clk 0:01:54.6]} 32... Nxe7 {[%clk 0:01:52.5]} 33. Rxd6 {[%clk
0:01:51.3]} 33... Ng8 {[%clk 0:01:46.4]} 34. Re1 {[%clk 0:01:33]} 34... Qf7
{[%clk 0:01:38.1]} 35. a3 {[%clk 0:01:25]} 35... h5 {[%clk 0:01:34.1]} 36. h3
{[%clk 0:01:21.7]} 36... Nf6 {[%clk 0:01:22.1]} 37. Rd8+ {[%clk 0:01:10]} 37...
Kh7 {[%clk 0:01:21.3]} 38. g4 {[%clk 0:00:59.1]} 38... Qb7+ {[%clk 0:01:14.1]}
39. Kh2 {[%clk 0:00:55.2]} 39... Qb2+ {[%clk 0:01:09]} 40. Kh1 {[%clk
0:00:48.5]} 40... Be4+ {[%clk 0:01:01.5]} 41. Rxe4 {[%clk 0:00:42.6]} 41... Nxe4
{[%clk 0:00:56.8]} 42. gxh5 {[%clk 0:00:42.8]} 42... Nf2+ {[%clk 0:00:34.7]} 43.
Kg1 {[%clk 0:00:38.2]} 43... Nxh3+ {[%clk 0:00:28.1]} 44. Kh1 {[%clk 0:00:29.8]}
44... Qb7+ {[%clk 0:00:12.1]} 45. Kh2 {[%clk 0:00:27.8]} 45... Qb2+ {[%clk
0:00:10.3]} 46. Kxh3 {[%clk 0:00:25.7]} 46... Qxa3+ {[%clk 0:00:09.7]} 47. Kg4
{[%clk 0:00:19.7]} 47... Bh6 {[%clk 0:00:02]} 48. hxg6+ {[%clk 0:00:19.8]} 48...
Kxg6 {[%clk 0:00:02.3]} 49. Qh5+ {[%clk 0:00:19.6]} 1-0

[Event "Late-Titled-Tuesday-Blitz-April-02-2024"]
[Site "Chess.com"]
[Date "2024.04.02"]
[Round "2"]
[White "Mikhal867"]
[Black "MightyMike_009"]
[Result "1-0"]
[WhiteElo "2526"]
[BlackElo "2735"]
[TimeControl "180+1"]
[EndTime "14:17:37 PDT"]
[Termination "Mikhal867 won by resignation"]

1. c4 {[%clk 0:02:48.3]} 1... Nf6 {[%clk 0:02:58.5]} 2. Nc3 {[%clk 0:02:47.6]}
2... e5 {[%clk 0:02:58.2]} 3. g3 {[%clk 0:02:46.8]} 3... d5 {[%clk 0:02:57]} 4.
cxd5 {[%clk 0:02:46.3]} 4... Nxd5 {[%clk 0:02:57.8]} 5. Bg2 {[%clk 0:02:46.2]}
5... Nb6 {[%clk 0:02:57.4]} 6. Nf3 {[%clk 0:02:45.6]} 6... Nc6 {[%clk
0:02:57.5]} 7. O-O {[%clk 0:02:45.8]} 7... Be7 {[%clk 0:02:57.6]} 8. d3 {[%clk
0:02:46.1]} 8... O-O {[%clk 0:02:57]} 9. a3 {[%clk 0:02:46.6]} 9... Be6 {[%clk
0:02:56.7]} 10. b4 {[%clk 0:02:45.1]} 10... a6 {[%clk 0:02:54]} 11. Bb2 {[%clk
0:02:41.5]} 11... f6 {[%clk 0:02:52.9]} 12. Rc1 {[%clk 0:02:40.3]} 12... f5
{[%clk 0:02:32.6]} 13. Na4 {[%clk 0:02:33.4]} 13... Bf6 {[%clk 0:02:31.1]} 14.
Rxc6 {[%clk 0:02:25.5]} 14... bxc6 {[%clk 0:02:30.7]} 15. Nxe5 {[%clk
0:02:25.7]} 15... Bxe5 {[%clk 0:02:27.3]} 16. Bxe5 {[%clk 0:02:25.3]} 16... Bd5
{[%clk 0:02:18.6]} 17. e4 {[%clk 0:02:20]} 17... fxe4 {[%clk 0:02:17.5]} 18.
dxe4 {[%clk 0:02:10.5]} 18... Bc4 {[%clk 0:02:17.4]} 19. Qxd8 {[%clk 0:01:51.2]}
19... Raxd8 {[%clk 0:02:18.3]} 20. Rc1 {[%clk 0:01:48]} 20... Bb5 {[%clk
0:01:46.6]} 21. Nc5 {[%clk 0:01:44.5]} 21... Rd2 {[%clk 0:01:41.4]} 22. Bf4
{[%clk 0:01:36.1]} 22... Ra2 {[%clk 0:01:38.1]} 23. Ne6 {[%clk 0:01:30.7]} 23...
Rf7 {[%clk 0:01:32.1]} 24. Nxc7 {[%clk 0:01:23.8]} 24... g5 {[%clk 0:01:20.1]}
25. Nxb5 {[%clk 0:00:48.3]} 25... gxf4 {[%clk 0:01:13.6]} 26. Rxc6 {[%clk
0:00:33.1]} 26... f3 {[%clk 0:01:04]} 27. Nd6 {[%clk 0:00:21.9]} 27... Ra1+
{[%clk 0:00:44]} 28. Bf1 {[%clk 0:00:21.5]} 28... Rd7 {[%clk 0:00:44.8]} 29.
Rxb6 {[%clk 0:00:20.3]} 29... Rc7 {[%clk 0:00:45.5]} 30. Rb8+ {[%clk 0:00:14.3]}
30... Kg7 {[%clk 0:00:45.3]} 31. Rb7 {[%clk 0:00:14.7]} 31... Rxb7 {[%clk
0:00:41.5]} 32. Nxb7 {[%clk 0:00:14.8]} 32... Kf6 {[%clk 0:00:42.3]} 33. Nc5
{[%clk 0:00:14.8]} 33... Ke5 {[%clk 0:00:43.1]} 34. Nxa6 {[%clk 0:00:14.1]}
34... Kxe4 {[%clk 0:00:42.8]} 35. b5 {[%clk 0:00:14.2]} 35... Kd5 {[%clk
0:00:42.5]} 36. b6 {[%clk 0:00:13.6]} 36... Kc6 {[%clk 0:00:43]} 37. Nb4+ {[%clk
0:00:11.5]} 37... Kxb6 {[%clk 0:00:42.6]} 38. Nc2 {[%clk 0:00:11.6]} 38... Ra2
{[%clk 0:00:39.5]} 39. Nd4 {[%clk 0:00:11.4]} 39... Rxa3 {[%clk 0:00:39.9]} 40.
h4 {[%clk 0:00:10.7]} 40... Kc5 {[%clk 0:00:37.9]} 41. Ne6+ {[%clk 0:00:09.8]}
41... Kd5 {[%clk 0:00:35.3]} 42. Nf4+ {[%clk 0:00:08.9]} 42... Ke4 {[%clk
0:00:33.1]} 43. Bd3+ {[%clk 0:00:07.9]} 43... Kd4 {[%clk 0:00:19.7]} 44. Bxh7
{[%clk 0:00:08]} 44... Ra1+ {[%clk 0:00:20.4]} 45. Kh2 {[%clk 0:00:08]} 45...
Rf1 {[%clk 0:00:21.1]} 46. Nh3 {[%clk 0:00:08.1]} 46... Ke5 {[%clk 0:00:20.7]}
47. Bd3 {[%clk 0:00:07.4]} 47... Rd1 {[%clk 0:00:20.8]} 48. Bg6 {[%clk
0:00:07.5]} 48... Kf6 {[%clk 0:00:21.1]} 49. Bh5 {[%clk 0:00:07.8]} 49... Rd3
{[%clk 0:00:21]} 50. Ng5 {[%clk 0:00:07.7]} 50... Rd2 {[%clk 0:00:21.7]} 51.
Ne4+ {[%clk 0:00:06.5]} 51... Kf5 {[%clk 0:00:21.1]} 52. Nxd2 {[%clk 0:00:06.8]}
52... Ke5 {[%clk 0:00:22]} 53. Nxf3+ {[%clk 0:00:07.1]} 53... Ke4 {[%clk
0:00:22.4]} 54. Kg2 {[%clk 0:00:07.8]} 54... Kd3 {[%clk 0:00:23.3]} 55. Bg4
{[%clk 0:00:08.2]} 55... Ke2 {[%clk 0:00:23.6]} 56. h5 {[%clk 0:00:08.7]} 56...
Kd1 {[%clk 0:00:24.5]} 57. h6 {[%clk 0:00:09.1]} 1-0

[Event "Late-Titled-Tuesday-Blitz-April-02-2024"]
[Site "Chess.com"]
[Date "2024.04.02"]
[Round "2"]
[White "arenal72"]
[Black "XDPS"]
[Result "1/2-1/2"]
[WhiteElo "2601"]
[BlackElo "2925"]
[TimeControl "180+1"]
[EndTime "14:17:42 PDT"]
[Termination "Game drawn - insufficient material"]

1. Nf3 {[%clk 0:03:00.9]} 1... d5 {[%clk 0:02:58.8]} 2. g3 {[%clk 0:03:00.1]}
2... c6 {[%clk 0:02:59.2]} 3. Bg2 {[%clk 0:02:59.9]} 3... Bg4 {[%clk 0:02:59.9]}
4. O-O {[%clk 0:02:58.6]} 4... Nd7 {[%clk 0:03:00]} 5. h3 {[%clk 0:02:57.5]}
5... Bh5 {[%clk 0:02:59.9]} 6. c4 {[%clk 0:02:55]} 6... e6 {[%clk 0:02:59.1]} 7.
d3 {[%clk 0:02:51.9]} 7... dxc4 {[%clk 0:02:56.1]} 8. dxc4 {[%clk 0:02:51.7]}
8... Ngf6 {[%clk 0:02:56.6]} 9. Nc3 {[%clk 0:02:45.7]} 9... Qc7 {[%clk
0:02:56.6]} 10. Bf4 {[%clk 0:02:44.4]} 10... e5 {[%clk 0:02:56.7]} 11. Be3
{[%clk 0:02:42.8]} 11... Be7 {[%clk 0:02:56.8]} 12. Nh4 {[%clk 0:02:35.2]} 12...
O-O {[%clk 0:02:55]} 13. Qc2 {[%clk 0:02:27]} 13... Rfe8 {[%clk 0:02:54]} 14.
Rfd1 {[%clk 0:02:23.4]} 14... Bc5 {[%clk 0:02:51.6]} 15. Bxc5 {[%clk 0:01:47.8]}
15... Nxc5 {[%clk 0:02:52.5]} 16. Rd2 {[%clk 0:01:35.1]} 16... Ne6 {[%clk
0:02:51.7]} 17. e3 {[%clk 0:01:32.6]} 17... Rad8 {[%clk 0:02:51.1]} 18. Rxd8
{[%clk 0:01:25.4]} 18... Rxd8 {[%clk 0:02:51.1]} 19. g4 {[%clk 0:01:25.6]} 19...
Bg6 {[%clk 0:02:51.1]} 20. Nxg6 {[%clk 0:01:25.6]} 20... hxg6 {[%clk 0:02:52]}
21. Rd1 {[%clk 0:01:25.9]} 21... Rxd1+ {[%clk 0:02:50.3]} 22. Qxd1 {[%clk
0:01:24.9]} 22... Nd7 {[%clk 0:02:50.7]} 23. b4 {[%clk 0:01:22]} 23... a5 {[%clk
0:02:44.8]} 24. a3 {[%clk 0:01:22.2]} 24... axb4 {[%clk 0:02:43.8]} 25. axb4
{[%clk 0:01:23.1]} 25... Kf8 {[%clk 0:02:23.4]} 26. Ne4 {[%clk 0:01:17.1]} 26...
Ke7 {[%clk 0:02:23]} 27. c5 {[%clk 0:01:16.5]} 27... b6 {[%clk 0:02:18.5]} 28.
cxb6 {[%clk 0:01:12.7]} 28... Nxb6 {[%clk 0:02:19.4]} 29. Nc5 {[%clk 0:01:07.3]}
29... Nxc5 {[%clk 0:02:19.3]} 30. bxc5 {[%clk 0:01:07.4]} 30... Nd7 {[%clk
0:02:20.2]} 31. Qc2 {[%clk 0:01:02.5]} 31... f5 {[%clk 0:02:14.8]} 32. gxf5
{[%clk 0:01:01]} 32... gxf5 {[%clk 0:02:15.7]} 33. Qxf5 {[%clk 0:01:00.4]} 33...
Nxc5 {[%clk 0:02:16]} 34. Qg6 {[%clk 0:00:58]} 34... Ne6 {[%clk 0:02:13.9]} 35.
Be4 {[%clk 0:00:52.7]} 35... Kd6 {[%clk 0:01:33.7]} 36. h4 {[%clk 0:00:35.7]}
36... Qe7 {[%clk 0:01:32.4]} 37. h5 {[%clk 0:00:31.8]} 37... Qg5+ {[%clk
0:01:26.2]} 38. Qxg5 {[%clk 0:00:31.7]} 38... Nxg5 {[%clk 0:01:26.6]} 39. Bc2
{[%clk 0:00:28.4]} 39... e4 {[%clk 0:01:25.6]} 40. Kg2 {[%clk 0:00:28.6]} 40...
c5 {[%clk 0:01:22.5]} 41. Kg3 {[%clk 0:00:28.5]} 41... Ke5 {[%clk 0:01:22.6]}
42. Kg4 {[%clk 0:00:26]} 42... Nf3 {[%clk 0:01:20.7]} 43. Bb3 {[%clk 0:00:22.4]}
43... Nd2 {[%clk 0:01:20.2]} 44. Bc2 {[%clk 0:00:18.2]} 44... Nf3 {[%clk
0:01:07.6]} 45. Bb3 {[%clk 0:00:17.6]} 45... Kf6 {[%clk 0:00:34]} 46. Kf4 {[%clk
0:00:17.4]} 46... Nd2 {[%clk 0:00:34.2]} 47. Bc2 {[%clk 0:00:15.4]} 47... c4
{[%clk 0:00:34.9]} 48. Bxe4 {[%clk 0:00:13.5]} 48... c3 {[%clk 0:00:35.6]} 49.
Bc2 {[%clk 0:00:10.9]} 49... Nc4 {[%clk 0:00:36.1]} 50. Ke4 {[%clk 0:00:10.4]}
50... Kg5 {[%clk 0:00:33.7]} 51. Kd3 {[%clk 0:00:10.3]} 51... Ne5+ {[%clk
0:00:30.1]} 52. Kxc3 {[%clk 0:00:08]} 52... Kxh5 {[%clk 0:00:23.7]} 53. f4
{[%clk 0:00:07.7]} 53... Nd7 {[%clk 0:00:21.6]} 54. Kd4 {[%clk 0:00:07.9]} 54...
g5 {[%clk 0:00:21.9]} 55. fxg5 {[%clk 0:00:07.7]} 55... Kxg5 {[%clk 0:00:22.8]}
56. e4 {[%clk 0:00:08.3]} 56... Kf6 {[%clk 0:00:23.3]} 57. e5+ {[%clk
0:00:08.8]} 57... Nxe5 {[%clk 0:00:24.2]} 1/2-1/2

[Event "Late-Titled-Tuesday-Blitz-April-02-2024"]
[Site "Chess.com"]
[Date "2024.04.02"]
[Round "2"]
[White "OlaaLa"]
[Black "katharinareinecke"]
[Result "0-1"]
[WhiteElo "2365"]
[BlackElo "2006"]
[TimeControl "180+1"]
[EndTime "14:17:44 PDT"]
[Termination "katharinareinecke won by resignation"]

1. Nf3 {[%clk 0:02:57.5]} 1... d5 {[%clk 0:02:59.3]} 2. g3 {[%clk 0:02:52.5]}
2... Nf6 {[%clk 0:02:58.6]} 3. Bg2 {[%clk 0:02:52.8]} 3... g6 {[%clk 0:02:52.4]}
4. O-O {[%clk 0:02:52.7]} 4... Bg7 {[%clk 0:02:52.2]} 5. d3 {[%clk 0:02:53.1]}
5... O-O {[%clk 0:02:52]} 6. Nbd2 {[%clk 0:02:49]} 6... b6 {[%clk 0:02:48.9]} 7.
c4 {[%clk 0:02:38.6]} 7... Bb7 {[%clk 0:02:42.8]} 8. cxd5 {[%clk 0:02:36.3]}
8... Nxd5 {[%clk 0:02:42.5]} 9. d4 {[%clk 0:02:22.7]} 9... e6 {[%clk 0:02:27.7]}
10. Nb3 {[%clk 0:02:08.5]} 10... Nd7 {[%clk 0:02:16.4]} 11. Bg5 {[%clk
0:02:03.7]} 11... Qb8 {[%clk 0:02:08.8]} 12. Rc1 {[%clk 0:02:02]} 12... a5
{[%clk 0:02:05.4]} 13. e4 {[%clk 0:01:55.1]} 13... Nb4 {[%clk 0:02:00.5]} 14. a3
{[%clk 0:01:52.5]} 14... Na6 {[%clk 0:01:56.4]} 15. Nbd2 {[%clk 0:01:44.5]}
15... h6 {[%clk 0:01:50.3]} 16. Be3 {[%clk 0:01:43.7]} 16... Qd8 {[%clk
0:01:42.7]} 17. Qc2 {[%clk 0:01:36.2]} 17... Qe7 {[%clk 0:01:40.7]} 18. Rfe1
{[%clk 0:01:23.7]} 18... Rac8 {[%clk 0:01:33.1]} 19. Qb3 {[%clk 0:00:59.9]}
19... c5 {[%clk 0:01:15]} 20. d5 {[%clk 0:01:00.1]} 20... exd5 {[%clk
0:01:03.1]} 21. exd5 {[%clk 0:00:59.2]} 21... Qf6 {[%clk 0:01:01.9]} 22. Rc2
{[%clk 0:00:42]} 22... Rfe8 {[%clk 0:01:01.5]} 23. Rd1 {[%clk 0:00:35.8]} 23...
Ne5 {[%clk 0:00:53.8]} 24. Nxe5 {[%clk 0:00:34.4]} 24... Rxe5 {[%clk 0:00:53]}
25. Nc4 {[%clk 0:00:33.5]} 25... Ree8 {[%clk 0:00:23.8]} 26. Nxa5 {[%clk
0:00:31.2]} 26... Ba8 {[%clk 0:00:19.4]} 27. Nc6 {[%clk 0:00:28.7]} 27... Bxc6
{[%clk 0:00:16.5]} 28. dxc6 {[%clk 0:00:29]} 28... Red8 {[%clk 0:00:14.9]} 29.
Rcd2 {[%clk 0:00:19.8]} 29... Rxd2 {[%clk 0:00:14.3]} 30. Re1 {[%clk 0:00:18.7]}
30... Rdd8 {[%clk 0:00:12.9]} 31. Qxb6 {[%clk 0:00:18.3]} 31... Nc7 {[%clk
0:00:11.8]} 32. Bxc5 {[%clk 0:00:18.2]} 32... Qxb2 {[%clk 0:00:08.3]} 33. Qa7
{[%clk 0:00:15.4]} 33... Qb8 {[%clk 0:00:07.7]} 34. Qa4 {[%clk 0:00:14.7]} 34...
Qa8 {[%clk 0:00:07.7]} 35. Qc4 {[%clk 0:00:14.4]} 35... Qb8 {[%clk 0:00:07.4]}
36. Be7 {[%clk 0:00:14.1]} 36... Re8 {[%clk 0:00:07.4]} 37. Bb4 {[%clk
0:00:08.7]} 37... Ne6 {[%clk 0:00:07]} 38. Bd5 {[%clk 0:00:06.3]} 38... Qc7
{[%clk 0:00:07]} 39. Rc1 {[%clk 0:00:05.2]} 39... Rb8 {[%clk 0:00:06.1]} 40. f4
{[%clk 0:00:05.1]} 40... Rbc8 {[%clk 0:00:06.2]} 41. Kg2 {[%clk 0:00:05.1]}
41... Qa7 {[%clk 0:00:05.4]} 42. Bc3 {[%clk 0:00:02.9]} 42... Qe3 {[%clk
0:00:05.3]} 43. Bd4 {[%clk 0:00:02.5]} 43... Qd2+ {[%clk 0:00:04.1]} 44. Bf2
{[%clk 0:00:02]} 44... Qb2 {[%clk 0:00:03.6]} 45. Bxe6 {[%clk 0:00:02.4]} 45...
fxe6 {[%clk 0:00:03.4]} 46. c7 {[%clk 0:00:03.3]} 46... Qa2 {[%clk 0:00:02.9]}
47. Qc6 {[%clk 0:00:03.6]} 47... Qd2 {[%clk 0:00:02.6]} 48. Qb7 {[%clk
0:00:03.8]} 48... Qxc1 {[%clk 0:00:02.9]} 49. a4 {[%clk 0:00:02.9]} 49... Qd2
{[%clk 0:00:03.1]} 0-1

[Event "Late-Titled-Tuesday-Blitz-April-02-2024"]
[Site "Chess.com"]
[Date "2024.04.02"]
[Round "2"]
[White "AlivodicDario"]
[Black "LikeWater"]
[Result "1-0"]
[WhiteElo "2311"]
[BlackElo "2635"]
[TimeControl "180+1"]
[EndTime "14:17:46 PDT"]
[Termination "AlivodicDario won by resignation"]

1. d4 {[%clk 0:03:00.9]} 1... Nf6 {[%clk 0:03:00.9]} 2. c4 {[%clk 0:02:59.7]}
2... e6 {[%clk 0:03:01.5]} 3. Nc3 {[%clk 0:02:59.5]} 3... c5 {[%clk 0:03:02.4]}
4. d5 {[%clk 0:02:58.6]} 4... exd5 {[%clk 0:03:03.3]} 5. cxd5 {[%clk 0:02:59.5]}
5... d6 {[%clk 0:03:04.2]} 6. e4 {[%clk 0:03:00.1]} 6... g6 {[%clk 0:03:05]} 7.
f4 {[%clk 0:03:00.4]} 7... Bg7 {[%clk 0:03:05.6]} 8. Bb5+ {[%clk 0:03:01]} 8...
Nfd7 {[%clk 0:03:06.3]} 9. Nf3 {[%clk 0:03:01.6]} 9... O-O {[%clk 0:03:06.9]}
10. O-O {[%clk 0:02:58.7]} 10... a6 {[%clk 0:03:06.5]} 11. Bd3 {[%clk 0:02:59]}
11... b5 {[%clk 0:03:07.2]} 12. Kh1 {[%clk 0:02:56.1]} 12... c4 {[%clk
0:03:07.3]} 13. Bc2 {[%clk 0:02:55.2]} 13... b4 {[%clk 0:03:05.2]} 14. Ne2
{[%clk 0:02:41.3]} 14... Re8 {[%clk 0:03:00.3]} 15. f5 {[%clk 0:02:39.3]} 15...
Nc5 {[%clk 0:02:59.1]} 16. Ng3 {[%clk 0:02:31.6]} 16... Nbd7 {[%clk 0:02:53.5]}
17. Bg5 {[%clk 0:02:16]} 17... Qc7 {[%clk 0:02:52.9]} 18. Nd4 {[%clk 0:02:01.1]}
18... Be5 {[%clk 0:02:27]} 19. fxg6 {[%clk 0:01:23.7]} 19... hxg6 {[%clk
0:02:27.9]} 20. Qf3 {[%clk 0:01:18.7]} 20... Nf8 {[%clk 0:02:28.4]} 21. Rad1
{[%clk 0:01:00.3]} 21... Nh7 {[%clk 0:02:20.6]} 22. Bf4 {[%clk 0:00:50.6]} 22...
Nd3 {[%clk 0:02:14.4]} 23. Bxd3 {[%clk 0:00:34]} 23... Bxd4 {[%clk 0:02:13.9]}
24. Bxd6 {[%clk 0:00:25.7]} 24... Qa7 {[%clk 0:01:30.3]} 25. Bxc4 {[%clk
0:00:20.7]} 25... Be5 {[%clk 0:01:30.9]} 26. Bxe5 {[%clk 0:00:19.5]} 26... Rxe5
{[%clk 0:01:31.8]} 27. d6 {[%clk 0:00:18.3]} 27... Be6 {[%clk 0:01:32.5]} 28.
Bxe6 {[%clk 0:00:12.5]} 28... Rxe6 {[%clk 0:01:30.5]} 29. d7 {[%clk 0:00:12.8]}
29... Ng5 {[%clk 0:01:10.4]} 30. d8=Q+ {[%clk 0:00:12.3]} 30... Rxd8 {[%clk
0:01:10.9]} 31. Rxd8+ {[%clk 0:00:13.2]} 31... Kg7 {[%clk 0:01:11.7]} 32. Qf4
{[%clk 0:00:08]} 32... Qc5 {[%clk 0:01:12.3]} 33. Nf5+ {[%clk 0:00:06]} 33...
gxf5 {[%clk 0:01:02.6]} 34. exf5 {[%clk 0:00:04.1]} 34... Qe7 {[%clk 0:00:18.8]}
35. fxe6 {[%clk 0:00:03.4]} 35... Qxd8 {[%clk 0:00:19.4]} 36. exf7 {[%clk
0:00:02.3]} 36... Kf8 {[%clk 0:00:20.1]} 37. Qf6 {[%clk 0:00:02.3]} 37... Qxf6
{[%clk 0:00:09.2]} 38. Rxf6 {[%clk 0:00:03.2]} 38... a5 {[%clk 0:00:09.3]} 39.
Ra6 {[%clk 0:00:03.6]} 39... Ne4 {[%clk 0:00:08.2]} 40. Rxa5 {[%clk 0:00:04.5]}
40... Nf2+ {[%clk 0:00:07.7]} 41. Kg1 {[%clk 0:00:04.1]} 41... Nd3 {[%clk
0:00:08.6]} 42. Rb5 {[%clk 0:00:04.3]} 42... Kxf7 {[%clk 0:00:08.1]} 43. a3
{[%clk 0:00:05]} 43... Ke6 {[%clk 0:00:05.7]} 44. axb4 {[%clk 0:00:05.3]} 44...
Kd6 {[%clk 0:00:06.3]} 45. h4 {[%clk 0:00:05.6]} 45... Nxb2 {[%clk 0:00:06]} 46.
h5 {[%clk 0:00:05.7]} 46... Nd3 {[%clk 0:00:05.2]} 47. h6 {[%clk 0:00:05.9]}
47... Nf4 {[%clk 0:00:05.4]} 48. h7 {[%clk 0:00:06.2]} 48... Ng6 {[%clk
0:00:06.1]} 49. Rb6+ {[%clk 0:00:07]} 1-0